Workbook

Sheet Sheet1
A1: 安顺经济技术开发区2019年上半年面向社会公开招聘事业单位工作人员总成绩
A2: 序号 | B2: 姓名 | C2: 准考证号 | D2: 报考单位名称 | E2: 报考岗位名称 | F2: 招聘计划数 | G2: 笔试成绩 | H2: 笔试成绩折合分 （60%） | I2: 面试考场 | J2: 面试成绩 | K2: 面试考场实考平均分 | L2: 面试成绩折合分 （40%） | M2: 总成绩 | N2: 备注
A3: 1 | B3: 邓瑞凯 | C3: 10125111408 | D3: 安顺经济技术开发区娄湖生态公园管理处 | E3: 01管理岗位 | F3: 1 | G3: 104.50 | H3: =G3/1.5*0.6 -> 41.80 | I3: 结构化考场 | J3: 76.10 | K3: 72.50 | L3: =J3*0.4 -> 30.44 | M3: =H3+L3 -> 72.24
A4: 2 | B4: 彭洁 | C4: 10125110201 | D4: 安顺经济技术开发区娄湖生态公园管理处 | E4: 01管理岗位 | F4: 1 | G4: 100.50 | H4: 40.20 | I4: 结构化考场 | J4: 74.60 | K4: 72.50 | L4: =J4*0.4 -> 29.84 | M4: =H4+L4 -> 70.04
A5: 3 | B5: 王凯 | C5: 10125112017 | D5: 安顺经济技术开发区娄湖生态公园管理处 | E5: 01管理岗位 | F5: 1 | G5: 100.50 | H5: 40.20 | I5: 结构化考场 | J5: 70.80 | K5: 72.50 | L5: =J5*0.4 -> 28.32 | M5: =H5+L5 -> 68.52
A6: 4 | B6: 张虹 | C6: 10125111005 | D6: 安顺经济技术开发区娄湖生态公园管理处 | E6: 02专业技术岗位 | F6: 1 | G6: 99.50 | H6: 39.80 | I6: 结构化考场 | J6: 71.40 | K6: 72.50 | L6: =J6*0.4 -> 28.56 | M6: =H6+L6 -> 68.36
A7: 5 | B7: 朱潇 | C7: 10125111119 | D7: 安顺经济技术开发区娄湖生态公园管理处 | E7: 02专业技术岗位 | F7: 1 | G7: 99.50 | H7: 39.80 | I7: 结构化考场 | J7: 缺考 | K7: 72.50
A8: 6 | B8: 马蕊丹 | C8: 10125110914 | D8: 安顺经济技术开发区娄湖生态公园管理处 | E8: 02专业技术岗位 | F8: 1 | G8: 97.50 | H8: 39.00 | I8: 结构化考场 | J8: 74.40 | K8: 72.50 | L8: =J8*0.4 -> 29.76 | M8: =H8+L8 -> 68.76
A9: 7 | B9: 赵江 | C9: 10125111326 | D9: 安顺经济技术开发区娄湖生态公园管理处 | E9: 02专业技术岗位 | F9: 1 | G9: 97.50 | H9: 39.00 | I9: 结构化考场 | J9: 71.40 | K9: 72.50 | L9: =J9*0.4 -> 28.56 | M9: =H9+L9 -> 67.56
A10: 8 | B10: 温志强 | C10: 10125111110 | D10: 安顺经济技术开发区娄湖生态公园管理处 | E10: 03专业技术岗位 | F10: 1 | G10: 104.00 | H10: 41.60 | I10: 结构化考场 | J10: 71.70 | K10: 72.50 | L10: =J10*0.4 -> 28.68 | M10: =H10+L10 -> 70.28
A11: 9 | B11: 赵倩倩 | C11: 10125111708 | D11: 安顺经济技术开发区娄湖生态公园管理处 | E11: 03专业技术岗位 | F11: 1 | G11: 102.00 | H11: 40.80 | I11: 结构化考场 | J11: 缺考 | K11: 72.50
A12: 10 | B12: 王佳丽 | C12: 10125112504 | D12: 安顺经济技术开发区娄湖生态公园管理处 | E12: 03专业技术岗位 | F12: 1 | G12: 101.50 | H12: 40.60 | I12: 结构化考场 | J12: 78.40 | K12: 72.50 | L12: =J12*0.4 -> 31.36 | M12: =H12+L12 -> 71.96
A13: 11 | B13: 杨金爽 | C13: 10125112213 | D13: 安顺经济技术开发区宋旗镇卫生院 | E13: 01专业技术岗位 | F13: 1 | G13: 95.50 | H13: 38.20 | I13: 结构化考场 | J13: 82.80 | K13: 72.50 | L13: =J13*0.4 -> 33.12 | M13: =H13+L13 -> 71.32
A14: 12 | B14: 李渊 | C14: 10125112423 | D14: 安顺经济技术开发区宋旗镇卫生院 | E14: 01专业技术岗位 | F14: 1 | G14: 95.50 | H14: 38.20 | I14: 结构化考场 | J14: 67.00 | K14: 72.50 | L14: =J14*0.4 -> 26.80 | M14: =H14+L14 -> 65.00
A15: 13 | B15: 梁小端 | C15: 10125111111 | D15: 安顺经济技术开发区宋旗镇卫生院 | E15: 01专业技术岗位 | F15: 1 | G15: 95.00 | H15: 38.00 | I15: 结构化考场 | J15: 77.00 | K15: 72.50 | L15: =J15*0.4 -> 30.80 | M15: =H15+L15 -> 68.80
A16: 14 | B16: 杜刚 | C16: 10125111411 | D16: 安顺经济技术开发区宋旗镇卫生院 | E16: 02专业技术岗位 | F16: 1 | G16: 79.50 | H16: 31.80 | I16: 结构化考场 | J16: 72.40 | K16: 72.50 | L16: =J16*0.4 -> 28.96 | M16: =H16+L16 -> 60.76 | N16: 未达比例
A17: 15 | B17: 樊华 | C17: 10125111720 | D17: 安顺经济技术开发区宋旗镇卫生院 | E17: 02专业技术岗位 | F17: 1 | G17: 75.00 | H17: 30.00 | I17: 结构化考场 | J17: 缺考 | K17: 72.50
A18: 16 | B18: 彭文敏 | C18: 10125111521 | D18: 安顺经济技术开发区幺铺镇卫生院 | E18: 01专业技术岗位 | F18: 1 | G18: 63.00 | H18: 25.20 | I18: 结构化考场 | J18: 61.40 | K18: 72.50 | L18: =J18*0.4 -> 24.56 | M18: =H18+L18 -> 49.76 | N18: 未达比例
A19: 17 | B19: 魏明艳 | C19: 10125110209 | D19: 安顺经济技术开发区幺铺镇卫生院 | E19: 02专业技术岗位 | F19: 1 | G19: 81.50 | H19: 32.60 | I19: 结构化考场 | J19: 65.60 | K19: 72.50 | L19: =J19*0.4 -> 26.24 | M19: =H19+L19 -> 58.84 | N19: 未达比例
A20: 18 | B20: 廖彩 | C20: 10125112027 | D20: 安顺经济技术开发区幺铺镇卫生院 | E20: 02专业技术岗位 | F20: 1 | G20: 67.50 | H20: 27.00 | I20: 结构化考场 | J20: 缺考 | K20: 72.50
A21: 19 | B21: 吴伟 | C21: 10125112420 | D21: 安顺城市服务职业学校 | E21: 01专业技术岗位 | F21: 3 | G21: 93.00 | H21: =G21/1.5*0.6 -> 37.20 | I21: 实操现场教学一 | J21: 80.00 | L21: =J21*0.4 -> 32.00 | M21: =H21+L21 -> 69.20 | N21: 未达比例
A22: 20 | B22: 樊炳银 | C22: 10125111407 | D22: 安顺城市服务职业学校 | E22: 01专业技术岗位 | F22: 3 | G22: 87.50 | H22: 35.00 | I22: 实操现场教学一 | J22: 77.00 | L22: 30.80 | M22: 65.80 | N22: 未达比例
A23: 21 | B23: 龙光海 | C23: 10125112010 | D23: 安顺城市服务职业学校 | E23: 01专业技术岗位 | F23: 3 | G23: 83.50 | H23: 33.40 | I23: 实操现场教学一 | J23: 67.40 | L23: 26.96 | M23: 60.36 | N23: 未达比例
A24: 22 | B24: 龙九灯 | C24: 10125111023 | D24: 安顺城市服务职业学校 | E24: 01专业技术岗位 | F24: 3 | G24: 83.00 | H24: 33.20 | I24: 实操现场教学一 | J24: 72.60 | L24: 29.04 | M24: 62.24 | N24: 未达比例
A25: 23 | B25: 李勇 | C25: 10125110105 | D25: 安顺城市服务职业学校 | E25: 01专业技术岗位 | F25: 3 | G25: 78.50 | H25: 31.40 | I25: 实操现场教学一 | J25: 77.40 | L25: 30.96 | M25: 62.36 | N25: 未达比例
A26: 24 | B26: 张浩 | C26: 10125110807 | D26: 安顺城市服务职业学校 | E26: 01专业技术岗位 | F26: 3 | G26: 78.50 | H26: 31.40 | I26: 实操现场教学一 | J26: 80.80 | L26: 32.32 | M26: 63.72 | N26: 未达比例
A27: 25 | B27: 谢炼坤 | C27: 10125111126 | D27: 安顺城市服务职业学校 | E27: 01专业技术岗位 | F27: 3 | G27: 78.50 | H27: 31.40 | I27: 实操现场教学一 | J27: 70.40 | L27: 28.16 | M27: 59.56 | N27: 未达比例
A28: 26 | B28: 王泽炬 | C28: 10125111104 | D28: 安顺城市服务职业学校 | E28: 01专业技术岗位 | F28: 3 | G28: 78.00 | H28: 31.20 | I28: 实操现场教学一 | J28: 66.80 | L28: 26.72 | M28: 57.92 | N28: 未达比例
A29: 27 | B29: 王璐 | C29: 10125111922 | D29: 安顺城市服务职业学校 | E29: 02专业技术岗位 | F29: 2 | G29: 102.00 | H29: 40.80 | I29: 实操现场教学二 | J29: 75.60 | L29: 30.24 | M29: 71.04
A30: 28 | B30: 李鸥 | C30: 10125112025 | D30: 安顺城市服务职业学校 | E30: 02专业技术岗位 | F30: 2 | G30: 97.00 | H30: 38.80 | I30: 实操现场教学二 | J30: 66.80 | L30: 26.72 | M30: 65.52
A31: 29 | B31: 杨帆 | C31: 10125112410 | D31: 安顺城市服务职业学校 | E31: 02专业技术岗位 | F31: 2 | G31: 96.50 | H31: 38.60 | I31: 实操现场教学二 | J31: 73.40 | L31: 29.36 | M31: 67.96
A32: 30 | B32: 王丹 | C32: 10125111205 | D32: 安顺城市服务职业学校 | E32: 02专业技术岗位 | F32: 2 | G32: 96.00 | H32: 38.40 | I32: 实操现场教学二 | J32: 52.20 | L32: 20.88 | M32: 59.28
A33: 31 | B33: 王普 | C33: 10125110911 | D33: 安顺城市服务职业学校 | E33: 02专业技术岗位 | F33: 2 | G33: 94.50 | H33: 37.80 | I33: 实操现场教学二 | J33: 64.80 | L33: 25.92 | M33: 63.72
A34: 32 | B34: 吴昌满 | C34: 10125111405 | D34: 安顺城市服务职业学校 | E34: 02专业技术岗位 | F34: 2 | G34: 94.50 | H34: 37.80 | I34: 实操现场教学二 | J34: 55.20 | L34: 22.08 | M34: 59.88
